Cogmind - Beta 9.6 @@@ ROGUE MODE // 2020.09.05 @ 14:26:58 Player: Hilbert Result: Destroyed by B-75 Beast with Magnetic Acceleration Cannon Performance ------------- Evolutions (5) 2500 Regions Visited (6) 1200 Robots Destroyed (18) 90 Value Destroyed (593) 593 Prototype IDs (0) 0 Alien Tech Used (0) 0 Bonus (0) 0 TOTAL SCORE: 4383 Bonus ------- None Cogmind --------- Core Integrity 0/1000 Matter 187/300 Energy 98/100 System Corruption 0% Temperature Cool (0) Movement Core (50) Location -5/Factory Parts ------- > --- POWER (2) -------- (None) > --- PROPULSION (5) --- (None) > --- UTILITY (8) ------ (None) > --- WEAPON (2) ------- (None) > --- INVENTORY (4) ---- Light Fission Core Xenon Bombardment Thruster Improved Cooling System Peak State ------------ > --- POWER ------------ Light Deuterium Engine Nuclear Core > --- PROPULSION ------- Improved Gravmag System Improved Gravmag System Improved Gravmag System Improved Gravmag System Improved Gravmag System > --- UTILITY ---------- Large Storage Unit Large Storage Unit > --- WEAPON ----------- Flak Cannon > --- INVENTORY -------- Gravmag System Xenon Bombardment Thruster Improved Cooling System [Rating: 37] Favorites ----------- Power Ion Engine Engine Ion Engine Power Core Light Nuclear Core Propulsion Improved Gravmag System Treads Light Treads Wheel Compact Wheel Hover Unit Improved Gravmag System Flight Unit Xenon Bombardment Thruster Utility Small Storage Unit Device Transmission Jammer Storage Small Storage Unit Processor Terrain Scan Processor Weapon Assault Rifle Energy Gun Small Laser Ballistic Gun Assault Rifle Ballistic Cannon Flak Cannon Impact Weapon Maul Slashing Weapon Katana Special Melee Weapon Improved Datajack Build | -11 -10 -9 -8 -7 -6 -5 ------- Run | Scr Mat Mat Mat Fac Fac Fac Slots Evolved 10 | . . 2 2 2 2 2 Power 1 | . . . . 1 . . Propulsion 3 | . . 1 . 1 1 . Utility 6 | . . 1 2 . 1 2 Weapon . | . . . . . . . Parts Attached 37 | 6 1 4 7 6 12 1 Power 5 | 1 . . 1 1 2 . Engine 2 | 1 . . . . 1 . Core 3 | . . . 1 1 1 . Reactor . | . . . . . . . Propulsion 14 | 2 . 1 1 3 6 1 Treads 5 | 1 . 1 1 2 . . Leg . | . . . . . . . Wheel 1 | 1 . . . . . . Hover 7 | . . . . . 6 1 Flight 1 | . . . . 1 . . Utility 8 | 1 . 1 3 . 3 . Device 3 | . . . 2 . 1 . Storage 3 | 1 . . . . 2 . Processor 2 | . . 1 1 . . . Hackware . | . . . . . . . Protection . | . . . . . . . Artifact . | . . . . . . . Weapon 10 | 2 1 2 2 2 1 . Energy Gun 1 | . . 1 . . . . Energy Cannon . | . . . . . . . Ballistic Gun 4 | 2 . 1 1 . . . Ballistic Cannon 1 | . . . . . 1 . Launcher . | . . . . . . . Special Weapon . | . . . . . . . Impact Weapon 1 | . . . 1 . . . Slashing Weapon 1 | . . . . 1 . . Piercing Weapon . | . . . . . . . Special Melee Weapon 2 | . 1 . . 1 . . Unidentified Prototypes . | . . . . . . . Parts Lost 20 | . . 4 5 3 7 1 Power 3 | . . 1 1 . 1 . Propulsion 10 | . . 1 2 2 4 1 Utility 1 | . . . 1 . . . Weapon 6 | . . 2 1 1 2 . Highest Loss Streak 5 | . . 2 2 3 5 1 Average Slot Usage (%) 54 | . 84 71 66 16 43 3 Engine 4 | . 14 9 . . 1 . Core 2 | . . . 7 . 4 . Treads 7 | . 14 11 9 4 . . Wheel 5 | . 14 11 4 . . . Hover 4 | . . . . . 24 3 Device 2 | . . . 10 . . . Storage 7 | . 14 11 8 . 5 . Processor 3 | . . 9 12 . . . Energy Gun 1 | . . 5 6 . . . Ballistic Gun 8 | . 23 10 4 . . . Special Melee Weapon 2 | . 3 3 . 6 3 . Naked Turns 89 | . . . 17 9 12 51 Heaviest Build 46 | 12 12 12 16 3 46 . Greatest Support 70 | 20 20 20 40 7 70 11 Greatest Overweight (x) . | . . . . . . . Average Overweight (x) . | . . . . . . . Largest Inventory Capacity 16 | 6 6 6 6 4 16 4 Average Capacity 6 | 5 6 6 5 4 8 4 Most Carried 5 | 3 5 5 5 3 4 3 Average Carried 3 | 1 3 3 4 2 3 2 Final Capacity 6 | 6 6 6 4 4 4 4 Final Carried 4 | 3 4 4 3 3 3 3 Class Distribution -------------------- 95% | Mutant 4% | Scavenger-Mutant Dominant Class ---------------- Mutant | -10/Materials Mutant | -9/Materials Mutant | -8/Materials Mutant | -7/Factory Mutant | -6/Factory Mutant | -5/Factory Resources | -11 -10 -9 -8 -7 -6 -5 ----------- Run | Scr Mat Mat Mat Fac Fac Fac Matter Collected 614 | 260 122 66 76 30 60 . Remotely . | . . . . . . . Salvage Created 620 | . 233 131 132 103 21 . Parts 33 | . 9 5 13 5 1 . Haulers Intercepted 1 | . 1 . . . . . Recyclers Shooed 1 | . 1 . . . . . Parts Field Recycled . | . . . . . . . Retrieved Matter . | . . . . . . . Parts Self-Destructed . | . . . . . . . Prevented . | . . . . . . . Kills | -11 -10 -9 -8 -7 -6 -5 ------- Run | Scr Mat Mat Mat Fac Fac Fac Combat Hostiles Destroyed 16 | . 4 3 2 4 3 . Melee 4 | . . . . 4 . . Guns 9 | . 4 3 2 . . . Cannons 3 | . . . . . 3 . Classes Destroyed 6 | . 2 . 3 1 . . Hauler 1 | . 1 . . . . . Watcher 1 | . . . 1 . . . Swarmer 7 | . . . . 4 3 . Grunt 7 | . 4 3 . . . . Sentry 1 | . . . 1 . . . Hunter 1 | . . . 1 . . . Best Kill Streak 4 | . 2 3 3 4 3 . Combat Bots Only 4 | . 2 3 2 4 3 . Max Kills in Single Turn 1 | . 1 1 1 1 1 . Gunslinging . | . . . . . . . Exploded . | . . . . . . . Melee 1 | . . . . 1 . . Uniques/NPCs Destroyed . | . . . . . . . Combat | -11 -10 -9 -8 -7 -6 -5 -------- Run | Scr Mat Mat Mat Fac Fac Fac Damage Taken 4077 | . 482 283 620 700 911 1081 Core 2048 | . 154 35 282 244 317 1016 Absorbed by Shields . | . . . . . . . Core Remaining (%) 67 | 100 38 91 48 65 62 . Volleys Fired 61 | . 28 12 7 . 14 . Largest 2 | . 2 1 2 . 1 . Hottest 60 | . 40 20 60 . 44 . Shots Fired 96 | . 56 12 14 . 14 . Gun 82 | . 56 12 14 . . . Cannon 14 | . . . . . 14 . Launcher . | . . . . . . . Special . | . . . . . . . Kinetic 89 | . 56 12 7 . 14 . Thermal 7 | . . . 7 . . . Explosive . | . . . . . . . Electromagnetic . | . . . . . . . Robot Hit Streak 12 | . 12 6 8 . 5 . Robot Miss Streak 8 | . 3 2 1 . 8 . Penetration Max . | . . . . . . . Secondary Targets 1 | . 1 . . . . . Max Gunslinging Chain 1 | . 1 . . . . . Shots Hit Robots 90 | . 48 10 10 8 14 . Core Hits 40 | . 14 6 7 4 9 . Critical Hits 2 | . 1 1 . . . . Critical Kills 1 | . . 1 . . . . Critical Parts Destroyed 1 | . 1 . . . . . Melee Attacks 24 | . 2 1 6 15 . . Impact 6 | . . . 6 . . . Slashing 13 | . . . . 13 . . Piercing . | . . . . . . . Sneak Attacks 2 | . 1 1 . . . . Combat Hostiles . | . . . . . . . Follow-up Attacks . | . . . . . . . Damage Inflicted 1191 | . 468 127 106 224 266 . Guns 701 | . 468 127 106 . . . Cannons 204 | . . . . . 204 . Explosions . | . . . . . . . Melee 224 | . . . . 224 . . Ramming 62 | . . . . . 62 . Kinetic 848 | . 468 127 49 . 204 . Thermal 57 | . . . 57 . . . Explosive . | . . . . . . . Electromagnetic . | . . . . . . . Impact . | . . . . . . . Slashing 224 | . . . . 224 . . Piercing . | . . . . . . . Highest Corruption 3 | . . 2 . . 3 . Average Corruption 2 | . . 2 . . 3 . Corruption Purged . | . . . . . . . Effects 5 | . . 1 . . 4 . Message Errors 1 | . . 1 . . . . Matter Fused 1 | . . . . . 1 . Heat Flow Errors 1 | . . . . . 1 . Energy Discharges 1 | . . . . . 1 . Targeting Errors 1 | . . . . . 1 . Overload Shots . | . . . . . . . Overflow Damage 13 | . . . . 7 6 . Projectiles . | . . . . . . . Explosions . | . . . . . . . Melee 13 | . . . . 7 6 . Knockbacks 7 | . . . . . 7 . Impact 1 | . . . . . 1 . Kinetic 6 | . . . . . 6 . Secondary . | . . . . . . . Self-Inflicted Damage 31 | . . . . . 31 . Shots . | . . . . . . . Rammed 8 | . . . . . 8 . Targets Rammed 8 | . . . . . 8 . Kicked . | . . . . . . . Crushed . | . . . . . . . Highest Temperature 126 | . 19 2 5 . 126 . Average Temperature 22 | . 10 2 3 . 36 . Received Heat Transfer 867 | . 276 144 225 75 129 18 Siege Activations . | . . . . . . . Robots Corrupted . | . . . . . . . Combat Hostiles . | . . . . . . . Parts Fried . | . . . . . . . Impact Corruptions 1 | . . . . . 1 . Robots Melted . | . . . . . . . Combat Hostiles . | . . . . . . . Parts Melted . | . . . . . . . Heat Transferred 125 | . . . 125 . . . Parts Sabotaged . | . . . . . . . Parts Stolen . | . . . . . . . Parts Stripped . | . . . . . . . Power Chain Reactions . | . . . . . . . Missiles Intercepted . | . . . . . . . Alert | -11 -10 -9 -8 -7 -6 -5 ------- Run | Scr Mat Mat Mat Fac Fac Fac Peak Influence 288 | . 121 90 165 188 288 162 Average Influence 99 | . 43 41 98 134 183 139 Maximum Alert Level 1 | . . . . . 1 . Low Security (%) 94 | 100 100 100 100 100 70 100 Level 1 5 | . . . . . 30 . Level 2 . | . . . . . . . Level 3 . | . . . . . . . Level 4 . | . . . . . . . Level 5 . | . . . . . . . High Security . | . . . . . . . Max Security . | . . . . . . . Squads Dispatched 9 | . 2 2 . . 4 1 Investigation 6 | . 1 1 . . 4 . Extermination . | . . . . . . . Reinforcement 3 | . 1 1 . . . 1 Assault . | . . . . . . . Garrison . | . . . . . . . Intercept . | . . . . . . . Construction Impeded . | . . . . . . . Haulers Reinforced . | . . . . . . . Stealth | -11 -10 -9 -8 -7 -6 -5 --------- Run | Scr Mat Mat Mat Fac Fac Fac Distress Signals 3 | . . . 1 2 . . Communications Jammed . | . . . . . . . Distress Signals . | . . . . . . . Times Spotted 95 | . 12 7 16 13 26 21 Peak Tracking Total 17 | . 6 3 11 9 8 17 Tactical Retreats 12 | . 2 . . 3 5 2 Traps | -11 -10 -9 -8 -7 -6 -5 ------- Run | Scr Mat Mat Mat Fac Fac Fac Traps Triggered 3 | . 1 1 . . 1 . Indirectly . | . . . . . . . Trap Hack Attempts . | . . . . . . . Triggered . | . . . . . . . Disarmed . | . . . . . . . Reprogrammed . | . . . . . . . Reused . | . . . . . . . Traps Extracted . | . . . . . . . Installed . | . . . . . . . Triggered . | . . . . . . . Machines | -11 -10 -9 -8 -7 -6 -5 ---------- Run | Scr Mat Mat Mat Fac Fac Fac Machines Disabled . | . . . . . . . Max in Single Turn . | . . . . . . . Machines Sabotaged . | . . . . . . . Garrisons Compromised . | . . . . . . . Overloaded Fab Kills . | . . . . . . . Fab Network Shutdowns . | . . . . . . . Hacking | -11 -10 -9 -8 -7 -6 -5 --------- Run | Scr Mat Mat Mat Fac Fac Fac Machines Accessed 14 | . 4 2 1 . 4 3 Terminals 13 | . 3 2 1 . 4 3 Fabricators . | . . . . . . . Repair Stations . | . . . . . . . Recycling Units 1 | . 1 . . . . . Scanalyzers . | . . . . . . . Garrison Access . | . . . . . . . Total Hacks 36 | . 9 6 2 . 11 8 Successful 19 | . 7 1 1 . 5 5 Failed 17 | . 2 5 1 . 6 3 Catastrophic 5 | . . . . . 4 1 Database Lockouts . | . . . . . . . Manual 27 | . 8 5 . . 8 6 Terminals 35 | . 8 6 2 . 11 8 Fabricators . | . . . . . . . Repair Stations . | . . . . . . . Recycling Units 1 | . 1 . . . . . Scanalyzers . | . . . . . . . Garrison Access . | . . . . . . . Terminal Hacks 8 | . 2 1 1 . 2 2 Record 3 | . . . . . 2 1 Alert Level 2 | . . 1 . . . 1 Unreport Threat 1 | . 1 . . . . . Locate Traps 1 | . 1 . . . . . Zone Layout 1 | . . . 1 . . . Fabricator Hacks . | . . . . . . . Repair Station Hacks . | . . . . . . . Recycling Unit Hacks . | . . . . . . . Scanalyzer . | . . . . . . . Garrison Access Hacks . | . . . . . . . Unauthorized Hacks 11 | . 5 . . . 3 3 Terminals 11 | . 5 . . . 3 3 Track 4 | . 3 . . . . 1 Assimilate 1 | . . . . . 1 . Botnet 6 | . 2 . . . 2 2 Fabricators . | . . . . . . . Repair Stations . | . . . . . . . Recycling Units . | . . . . . . . Scanalyzers . | . . . . . . . Garrison Access . | . . . . . . . Data Cores Recovered . | . . . . . . . Used . | . . . . . . . Hacking Detections 11 | . 3 2 1 . 4 1 Full Trace Events 5 | . 1 1 . . 3 . Feedback Events . | . . . . . . . Feedback Blocked . | . . . . . . . Robot Schematics Acquired . | . . . . . . . Robots Built . | . . . . . . . Matter . | . . . . . . . Time . | . . . . . . . Total Robot Build Rating . | . . . . . . . Part Schematics Acquired . | . . . . . . . Parts Built . | . . . . . . . Matter . | . . . . . . . Time . | . . . . . . . Total Part Build Rating . | . . . . . . . Parts Repaired . | . . . . . . . Time . | . . . . . . . Parts Recycled . | . . . . . . . Recycled Matter . | . . . . . . . Retrieved Matter . | . . . . . . . Retrieved Components . | . . . . . . . Parts Scanalyzed . | . . . . . . . Part Schematics Acquired . | . . . . . . . Parts Damaged . | . . . . . . . Bothacking | -11 -10 -9 -8 -7 -6 -5 ------------ Run | Scr Mat Mat Mat Fac Fac Fac Used RIF Installer . | . . . . . . . Robots Hacked 4 | . 2 1 . 1 . . Non-combat 4 | . 2 1 . 1 . . Combat . | . . . . . . . Robot Hacks Applied 4 | . 2 1 . 1 . . parse_system 4 | . 2 1 . 1 . . Relay Couplers Released . | . . . . . . . Robots Rewired . | . . . . . . . Allies Hacked . | . . . . . . . Hacks Repelled . | . . . . . . . Allies | -11 -10 -9 -8 -7 -6 -5 -------- Run | Scr Mat Mat Mat Fac Fac Fac Total Allies . | . . . . . . . Largest Group . | . . . . . . . Highest-Rated Group . | . . . . . . . Highest-Rated Ally . | . . . . . . . Total Orders . | . . . . . . . Ally Attacks . | . . . . . . . Total Damage . | . . . . . . . Kills . | . . . . . . . Allies Corrupted . | . . . . . . . Allies Melted . | . . . . . . . Intel | -11 -10 -9 -8 -7 -6 -5 ------- Run | Scr Mat Mat Mat Fac Fac Fac Robot Analysis Total . | . . . . . . . Derelict Logs Recovered . | . . . . . . . Drone Launches . | . . . . . . . Drone Recoveries . | . . . . . . . Exploration | -11 -10 -9 -8 -7 -6 -5 ------------- Run | Scr Mat Mat Mat Fac Fac Fac Turns Passed 1824 | 73 448 186 374 260 340 143 Spaces Moved 2006 | 62 276 112 249 468 587 252 Core 414 | 5 . . 35 247 26 101 Treads 328 | 4 118 56 150 . . . Legs . | . . . . . . . Wheels 331 | 53 158 56 64 . . . Hover 501 | . . . . . 350 151 Flight 432 | . . . . 221 211 . Fastest Speed 40 | 50 100 100 50 40 40 50 Average Speed 74 | 99 125 130 129 45 44 55 Slowest Speed 160 | 160 160 160 160 50 60 60 Overloaded Moves . | . . . . . . . Propulsion Burnouts . | . . . . . . . Robots Hopped 7 | . . . . 7 . . Cave-ins Triggered . | . . . . . . . Exploration Rate (%) 22 | 4 54 21 32 17 18 13 Regions Visited 6 Branch Regions . Pre-discovered Areas . | . . . . . . . Known Exits Taken . | . . . . . . . Unknown Exits Taken 6 | 1 1 1 1 1 1 . Scrap Searched . | . . . . . . . Spaces Dug 9 | . . . 5 4 . . Terrain Destroyed 9 | . . . 5 4 . . Melee 9 | . . . 5 4 . . Projectile . | . . . . . . . AOE . | . . . . . . . Actions | -11 -10 -9 -8 -7 -6 -5 --------- Run | Scr Mat Mat Mat Fac Fac Fac Total 2192 | 70 325 139 272 486 646 254 Wait 54 | . 17 9 3 . 25 . Move 1986 | 61 275 111 248 453 586 252 Hop 7 | . . . . 7 . . Pick Up 9 | 3 1 1 1 2 . 1 Fast Attach 27 | 6 . 2 5 5 9 . Attach 9 | . 1 2 2 1 2 1 Detach 4 | . 1 1 . 1 1 . Swap 1 | . . . . . 1 . Drop 2 | . . . . 2 . . Fire 61 | . 28 12 7 . 14 . Melee 24 | . 2 1 6 15 . . Ram 8 | . . . . . 8 . Kick . | . . . . . . . Crush . | . . . . . . . Escape Stasis . | . . . . . . . Rewire . | . . . . . . . Trap . | . . . . . . . Miscellaneous . | . . . . . . . Route ------- -11/Scrapyard -10/Materials (discovered 2 exits: *Mat / [*Min]) -9/Materials -8/Materials -7/Factory -6/Factory -5/Factory History --------- Turn | Location | Event 2 | -11/Scrapyard | Met Revision 17 14 | -11/Scrapyard | Discovered new exit (range 14) 74 | -11/Scrapyard | Entered Materials 74 | -10/Materials | Discovered new exit (range 9) 303 | -10/Materials | Build established: Mutant 324 | -10/Materials | Core integrity fell below 50% 499 | -10/Materials | Discovered new exit (range 15) 522 | -10/Materials | Entered another Materials area 522 | -9/Materials | Evolved 2 slots: Propulsion x1, Utility x1 698 | -9/Materials | Discovered new exit (range 6) 708 | -9/Materials | Entered another Materials area 708 | -8/Materials | Evolved 2 slots: Utility x2 1065 | -8/Materials | Released all parts (7) 1075 | -8/Materials | Discovered new exit (range 16) 1082 | -8/Materials | Entered Factory 1082 | -7/Factory | Evolved 2 slots: Power x1, Propulsion x1 1265 | -7/Factory | Lost 3 parts (2n1w) 1340 | -7/Factory | Discovered new exit (range 4) 1342 | -7/Factory | Entered another Factory area 1342 | -6/Factory | Evolved 2 slots: Propulsion x1, Utility x1 1670 | -6/Factory | Released all parts (5) 1675 | -6/Factory | Discovered new exit (range 16) 1682 | -6/Factory | Entered another Factory area 1682 | -5/Factory | Evolved 2 slots: Utility x2 1700 | -5/Factory | Lost 5 parts (4n1w) 1785 | -5/Factory | Core integrity fell below 50% 1823 | -5/Factory | Core integrity fell below 20% 1825 | -5/Factory | Spotted B-75 Beast 1825 | -5/Factory | Destroyed by B-75 Beast with Magnetic Acceleration Cannon Last Messages --------------- Trojan loaded successfully. Testing... Tracking enabled and active. 01751_ K-01 Serf collects debris. 01755_ O-16 Technician: "IFF HANDSHAKE FAILED. SECURING TERMINAL." 01759_ ALERT: Hostiles spotted, dispatching reinforcements to Terminal F007. 01760_ Slug penetrates Wall. 01772_ Penetrated by Slug. 01774_ Gravmag System destroyed. 01783_ K-01 Serf cleans the Power Conduit. 01785_ Fusion Modulator explodes. 01785_ S-27 Virus destroyed. 01806_ Connecting with Terminal... 01809_ Acquired Lgt. Fission Core. 01817_ S-27 Virus destroyed. 01825_ Nuclear Reactor explodes. 01825_ Matter Pump disabled. 01825_ Fabricator disabled. 01825_ Matter Pump disabled. Map ----- +----------------------------------------------------+ | ?????????????????????????????????????????????????? | | ?????????????????????????????????????????????????? | | ?????????????????????????????????????????????????? | | ?????????????????????????????????????????????????? | | ?????????????????????????????????????????????????? | | ?????????????????????????????????????????????????? | | ?????????????????????????????????????????????????? | | ?????????????????????????????????????????????????? | | ?????????????????????????????????????????????????? | | ?????????????????????????????????????????????????? | | ?????????????????????????????????????????????????? | | ????????????????????????????? ???????????????????? | | ????????????????????????????? ????????????????? | | ???????????????????????????? ??????????????? | | ???????????????????????????? ??????????????? | | ???????????????????????????? ???????????????? | | ?????????????+######??###+## ????????????????? | | ??????? ??? !! ? ????????????????? | | ??????# ?? !! ?????????????????? | | ??????# ? ! "" ??????????????????? | | ??????+ "?" """ F" ???????????????????? | | ??????# """ """ " ????????????????????? | | ??????# """ """ ##??#############????? | | ??????# BB #??# ????? | | ??????# """ """ """ BB #??# ?????? | | ####### """ """ "" @ ##### """??????? | | """ """ "" # *** """??????? | | # ** """"?????? | | "" # ** """"?????? | | "" + """"?????? | | !! """ " # """??????? | | !! # """??????? | | ! # ????? | | #########"#########! s # #???? | | ??????? ??????# ]# #???? | | ????? """ ""????#" s s##############???? | | ???# """ """ ??#" """ """" s#????????????????? | | ???# """ """ #?#" """ """" #????????????????? | | ???# ??#T """ """" #????????????????? | | ???# """ """ #?#" """" #????????????????? | | ???# """ """ #?#" """" #????????????????? | | ???# ??? ""? ??#" """" #????????????????? | | ???# ???????????# """" #????????????????? | | ???# ?????????????# =%[ #????????????????? | | ???#??????????????# #????????????????? | | ??????????????????# #????????????????? | | ??????????????????# #####+###????????????????? | | ??????????????????+ #?? ?????????????????? | | ??????????????????# #?# / #???????????????? | | ??????????????????# #?# "" #???????????????? | +----------------------------------------------------+ Best States ------------- Heat Dissipation 40 Energy Generation 23 Energy Capacity 280 Matter Stores 300 Matter Capacity 300 Sight Range 16 Robot Scan Range 13 Terrain Scan Range 16 Terrain Scan Density 85 Jamming Range 8 Evasion (%) 62 Recoil Reduction 2 Item Schematics ----------------- None Robot Schematics ------------------ None Fabricated ------------ Nothing Alien Tech Used ----------------- None Achievements -------------- None Challenges ------------ None Game ------ Seed ProcessingCoolantFacilitator Manual? 0 Play Time 00:31:49 Cumulative 25.5 hours Start 2020.09.05 @ 13:58:08 End 2020.09.05 @ 14:26:58 Sessions 1 Manual Loads 0 Difficulty Rogue Special Mode None Game No. 56 Rogue 56 Adventurer 0 Explorer 0 Win Type - Total 0 Types 0/0/0/0/0/0/0 Lore% 27 Gallery% 33 Achievement% 24 Wizard Run 0 Options --------- ASCII 0 Keyboard 1 Movement Vi Keybinds 0 Fullscreen 1 Font 18/SmallcapsGlow Map View 76x50 Tactical HUD 1 Map Filters NONE Filters NONE Steam 1 RUN: a54c55ee-7615-41b8-9adc-f7affe4fc10d